lending/lending_fUSD_20250418
["ID","MTS","AMOUNT","RATE_DAILY","PERIOD"]
[358341099,1744957841477,-219.59,0.00075208,120]
[358341100,1744957841486,-987.85,0.00075554,2]
[358341101,1744957841643,-607.83,0.00077226,2]
[358341102,1744957841653,-151.0,0.00077226,120]
[358341103,1744957841663,-7358.53397222,0.00078605,15]
[358341104,1744957841672,-2739.89,0.000787,60]
[358341105,1744957841682,-607.83,0.0007949,2]
[358341106,1744957841691,-1000.0,0.0007957,120]
[358341107,1744957841700,-222.99863543,0.00079899,60]
[358341108,1744957841710,-1000.0,0.000799,120]
[358341109,1744957841719,-99964.35,0.000799,60]
[358341110,1744957841731,-300.0,0.00079999,60]
[358341111,1744957841742,-2000.0,0.0008,120]
[358341112,1744957841753,-229.86793012,0.0008,15]
[358341113,1744957841762,-111360.64864436,0.0008,2]
[358341114,1744957841772,-929.84271673,0.0008,120]
[358341115,1744957841783,-219.59,0.00080098,120]
[358341116,1744957841792,-1000.0,0.000807,120]
[358341117,1744957841802,-195.79,0.00081055,120]
[358341118,1744957841813,-1616.60231902,0.0008137,30]
[358341119,1744957841822,-607.83,0.00081754,2]
[358341120,1744957841831,-4445.546,0.00082,120]
[358341121,1744957841840,-276.46235898,0.00082192,120]
[358341122,1744957841848,-153.0,0.00082659,120]
[358341123,1744957841856,-153.0,0.00082659,120]
[358341124,1744957841865,-153.0,0.00082659,120]
[358341125,1744957841873,-153.0,0.00082659,120]
[358341126,1744957841883,-153.0,0.00082659,120]
[358341127,1744957841892,-153.0,0.00082659,120]
[358341128,1744957841902,-153.0,0.00082659,120]
[358341129,1744957841911,-153.0,0.00082659,120]
[358341130,1744957841920,-992.608,0.00082683,120]
[358341131,1744957841930,-4860.82843478,0.00083312,15]
[358341132,1744957841939,-7358.53397222,0.00083929,15]
[358341133,1744957841949,-500.0,0.00084,14]
[358341134,1744957841958,-607.83,0.00084018,2]
[358341135,1744957841967,-507.22516603,0.00084147,120]
[358341136,1744957841977,-5000.0,0.000849,120]
[358341137,1744957841987,-1100.0,0.000849,30]
[358341138,1744957841996,-99964.35,0.000849,60]
[358341139,1744957842006,-208.593675,0.000849,120]
[358341140,1744957842016,-162.19684763,0.00084973,60]
[358341141,1744957842026,-214.43186497,0.00084973,60]
[358341142,1744957842035,-500.0,0.00084973,60]
[358341143,1744957842044,-219.59,0.00084989,120]
[358341144,1744957842055,-219.826417,0.0008499,120]
[358341145,1744957842064,-154.930569,0.0008499,120]
[358341146,1744957842074,-151.0,0.0008499,120]
[358341147,1744957842084,-151.0,0.0008499,120]
[358341148,1744957842094,-151.0,0.0008499,120]
[358341149,1744957842103,-151.0,0.0008499,120]
[358341150,1744957842113,-151.0,0.0008499,120]
[358341151,1744957842123,-300.0,0.00084999,60]
[358341152,1744957842133,-500.0,0.00084999,120]
[358341153,1744957842143,-203.969351,0.00085,120]
[358341154,1744957842152,-151.0,0.00085,120]
[358341155,1744957842161,-151.0,0.00085,120]
[358341156,1744957842171,-151.0,0.00085,120]
[358341157,1744957842180,-1487.11164,0.00085,120]
[358341158,1744957842189,-151.0,0.00085,120]
[358341159,1744957842199,-151.0,0.00085,120]
[358341160,1744957842209,-151.0,0.00085,120]
[358341161,1744957842219,-151.0,0.00085,120]
[358341162,1744957842228,-151.0,0.00085,120]
[358341163,1744957842238,-151.0,0.00085,120]
[358341164,1744957842248,-151.0,0.00085,120]
[358341165,1744957842258,-151.0,0.00085,120]
[358341166,1744957842267,-151.0,0.00085,120]
[358341167,1744957842276,-291.864448,0.00085,120]
[358341168,1744957842285,-151.0,0.00085,120]
[358341169,1744957842294,-291.864448,0.00085,120]
[358341170,1744957842303,-151.0,0.00085,120]
[358341171,1744957842313,-151.0,0.00085,120]
[358341172,1744957842322,-152.28317,0.00085,120]
[358341173,1744957842331,-151.0,0.00085,120]
[358341174,1744957842341,-152.66982,0.00085,120]
[358341175,1744957842350,-151.0,0.00085,120]
[358341176,1744957842359,-153.304364,0.00085,120]
[358341177,1744957842368,-151.0,0.00085,120]
[358341178,1744957842378,-600.0,0.00085563,120]
[358341179,1744957842387,-607.83,0.00086281,2]
[358341180,1744957842396,-500.0,0.00087373,120]
[358341181,1744957842406,-607.83,0.00088545,2]
[358341182,1744957842415,-250.0,0.00088978,2]
[358341183,1744957842424,-7358.53397222,0.00089253,15]
[358341184,1744957842433,-1002.83815348,0.00089479,14]
[358341185,1744957842442,-992.608,0.00089512,120]
[358341186,1744957842451,-219.59,0.00089879,120]
[358341187,1744957842460,-1000.0,0.000899,120]
[358341188,1744957842470,-874.0,0.0009,120]
[358341189,1744957842479,-301.53,0.0009,2]
[358341190,1744957842489,-195.79,0.00090061,120]
[358341191,1744957842498,-1000.0,0.00090452,60]
[358341192,1744957842508,-607.83,0.00090809,2]
[358341193,1744957842517,-4860.82843478,0.00091606,15]
[358341194,1744957842527,-607.83,0.00093073,2]
[358341195,1744957842536,-163.81,0.00093113,120]
[358341196,1744957842545,-174.28,0.00094086,3]
[358341197,1744957842555,-268.13961461,0.0009429,7]
[358341198,1744957842564,-600.0,0.00094329,120]
[358341199,1744957842574,-7358.53397222,0.00094576,15]
[358341200,1744957842584,-219.59,0.0009477,120]
[358341201,1744957842593,-500.0,0.00094771,120]
[358341202,1744957842602,-992.609,0.00096341,120]
[358341203,1744957842611,-8482.30163394,0.000972,2]
[358341204,1744957842620,-393.49529082,0.000972,2]
[358341205,1744957842629,-193.37308347,0.000972,21]
[358341206,1744957842638,-372.72226464,0.000972,2]
[358341207,1744957842647,-180.42276924,0.0009729,30]
[358341208,1744957842656,-300.0,0.00097299,60]
[358341209,1744957842665,-500.0,0.00097299,120]
[358341210,1744957842673,-10688.0,0.000973,120]
[358341211,1744957842682,-10688.0,0.000973,120]
[358341212,1744957842692,-10688.0,0.000973,120]
[358341213,1744957842700,-10688.0,0.000973,120]
[358341214,1744957842709,-10688.0,0.000973,120]
[358341215,1744957842719,-10688.0,0.000973,120]
[358341216,1744957842727,-10688.0,0.000973,120]
[358341217,1744957842737,-10688.0,0.000973,120]
[358341218,1744957842749,-10688.0,0.000973,120]
[358341219,1744957842758,-10688.0,0.000973,120]
[358341220,1744957842767,-10207.68004098,0.000973,120]
[358341221,1744957842780,-480.31995902,0.000973,120]
[358341222,1744957842790,-4548.92923208,0.000973,120]
[358341223,1744957842801,-3583.06796825,0.000973,120]
[358341224,1744957842816,-151.0,0.0008499,120]
[358341225,1744957842826,-99.15279967,0.000973,120]
[358341226,1744957842835,-152.730707,0.000973,120]
[358341227,1744957842843,-32.49687605,0.000973,120]
[358341228,1744957842855,-121.78773895,0.000973,120]
[358341229,1744957842865,-151.0,0.000973,120]
[358341230,1744957842874,-42.77226105,0.000973,120]
[358341233,1744957844671,-166.05709274,0.000384,33]
[358341234,1744957844681,-1661.2744322,0.000799,2]
[358341235,1744957844690,-153.0,0.00082659,120]
[358341236,1744957844699,-153.0,0.00082659,120]
[358341237,1744957844709,-151.0,0.00085,120]
[358341238,1744957844718,-581.77785208,0.0008656,80]
[358341239,1744957844728,-108.22773895,0.000973,120]
[358341240,1744957844738,-151.188286,0.000973,120]
[358341241,1744957844752,-301.854296,0.000973,120]
[358341242,1744957844762,-151.0,0.000973,120]
[358341243,1744957844771,-151.0,0.000973,120]
[358341244,1744957844781,-151.0,0.000973,120]
[358341245,1744957844791,-281.906018,0.000973,120]
[358341246,1744957844800,-155.88214,0.000973,120]
[358341247,1744957844809,-151.0,0.000973,120]
[358341248,1744957844819,-151.0,0.000973,120]
[358341249,1744957844828,-161.492971,0.000973,120]
[358341250,1744957844837,-151.0,0.000973,120]
[358341251,1744957844847,-151.0,0.000973,120]
[358341252,1744957844856,-336.34,0.00097356,30]
[358341253,1744957844865,-1831.39960846,0.000978,120]
[358341254,1744957844875,-17132.05968344,0.000979,120]
[358341319,1744957846379,-151.0,0.0008499,120]
[358341320,1744957846389,-151.0,0.00085,120]
[358341321,1744957846398,-151.0,0.000973,120]
[358341323,1744957846408,-29810.915951,0.000979,120]
[358341324,1744957846462,-676.83627597,0.000979,120]
[358341325,1744957846474,-784.9815,0.000979,120]
[358341326,1744957846485,-1414.157248,0.000979,120]
[358341327,1744957846497,-545.152395,0.000979,120]
[358341328,1744957846509,-1144.67356,0.000979,120]
[358341329,1744957846521,-472.95900005,0.000979,120]
[358341330,1744957846533,-868.354,0.000979,120]
[358341339,1744958523951,-300.0,0.00029999,2]
[358341340,1744958523982,-250.0,0.00029999,2]
[358341341,1744958524009,-10000.0,0.0003,3]
[358341342,1744958524036,-623.13470736,0.0003,2]
[358341343,1744958733143,-250.0,0.0003268,2]
[358341344,1744958733164,-184.23034735,0.00032999,2]
[358341345,1744958809112,-168.08,0.00032877,30]
[358341346,1744958809135,-191.39249914,0.00032938,2]
[358341347,1744958837074,-58.60750086,0.00032938,2]
[358341348,1744958837099,-150.0,0.00034548,10]
[358341349,1744958837121,-55.24295893,0.00035717,2]
[358341350,1744958842103,-174.58815287,0.00035717,2]
[358341351,1744958845133,-20.1688882,0.00035717,2]
[358341352,1744958845158,-250.0,0.00036164,2]
[358341353,1744958845180,-3239.974431,0.00039699,2]
[358341354,1744958845201,-852.67592388,0.00039899,2]
[358341355,1744958845224,-400.0,0.00039999,5]
[358341356,1744958845246,-6016.15882601,0.0004,10]
[358341357,1744958846080,-949.71070186,0.0004,10]
[358341358,1744958847145,-799.37567209,0.0004,10]
[358341359,1744958848131,-1801.81029772,0.0004,10]
[358341374,1744959031549,-2432.94450232,0.0004,10]
[358341375,1744959031559,-1119.18589556,0.0004,10]
[358341376,1744959031571,-4168.56843775,0.0004,10]
[358341377,1744959031583,-11068.878,0.0004,10]
[358341378,1744959031595,-1302.66754437,0.0004,10]
[358341379,1744959031607,-2340.70012232,0.0004,10]
[358341380,1744959031617,-250.0,0.00041358,2]
[358341381,1744959031626,-969.095,0.00042715,65]
[358341382,1744959031636,-1457.98241188,0.000434,17]
[358341383,1744959031645,-250.0,0.00044,2]
[358341384,1744959031655,-150.0,0.00044986,2]
[358341385,1744959031664,-453.0,0.00045,120]
[358341386,1744959031674,-151.0,0.00045,120]
[358341387,1744959031683,-499.999999,0.00045,120]
[358341388,1744959031693,-150.0,0.00045589,10]
[358341389,1744959031702,-550.0,0.00049081,5]
[358341390,1744959031712,-198.62734995,0.00049315,120]
[358341391,1744959031721,-770.0,0.00052021,10]
[358341392,1744959031731,-299.68326322,0.00052087,120]
[358341393,1744959031741,-250.0,0.00053559,120]
[358341394,1744959031750,-167.08,0.00053559,2]
[358341395,1744959031759,-175.67,0.00053586,120]
[358341396,1744959031769,-1000.0,0.00054795,120]
[358341397,1744959031778,-500.0,0.00054795,120]
[358341398,1744959031788,-337.0,0.00055137,10]
[358341399,1744959031798,-175.67,0.00058477,120]
[358341400,1744959031807,-969.095,0.00059536,119]
[358341401,1744959031816,-167.08,0.00060254,2]
[358341421,1744959032025,-500.0,0.00062313,120]
[358341422,1744959032035,-175.67,0.00063367,120]
[358341423,1744959032045,-500.0,0.00063416,120]
[358341424,1744959032055,-326.28296547,0.00064789,14]
[358341425,1744959032064,-26978.63185726,0.0006479,2]
[358341426,1744959032074,-151.0,0.000648,90]
[358341427,1744959032083,-167.08,0.00066949,2]
[358341428,1744959032093,-600.0,0.00067034,120]
[358341429,1744959032102,-175.67,0.00068257,120]
[358341430,1744959032111,-153.32,0.000716,72]
[358341431,1744959032125,-153.32,0.000716,72]
[358341432,1744959032139,-153.32,0.000716,72]
[358341433,1744959032149,-153.32,0.000716,72]
[358341434,1744959032158,-153.32,0.000716,72]
[358341435,1744959032168,-153.32,0.000716,72]
[358341436,1744959032179,-153.32,0.000716,72]
[358341437,1744959032189,-153.32,0.000716,72]
[358341438,1744959032199,-153.32,0.000716,72]
[358341439,1744959032209,-153.32,0.000716,72]
[358341440,1744959032220,-175.67,0.00073148,120]
[358341441,1744959032229,-167.08,0.00073643,2]
[358341442,1744959032238,-174.28,0.00074435,2]
[358341443,1744959032248,-292.51,0.00074803,2]
[358341444,1744959032257,-969.095,0.00076358,120]
[358341445,1744959032267,-167.11,0.00076502,2]
[358341446,1744959032276,-804.77,0.00076502,30]
[358341447,1744959032285,-890.47,0.00076712,120]
[358341448,1744959032295,-153.0,0.0007684,120]
[358341449,1744959032304,-153.0,0.0007684,120]
[358341450,1744959032314,-153.0,0.0007684,120]
[358341451,1744959032323,-153.0,0.0007684,120]
[358341452,1744959032333,-153.0,0.0007684,120]
[358341453,1744959032342,-153.0,0.0007684,120]
[358341454,1744959032352,-153.0,0.0007684,120]
[358341455,1744959032362,-153.0,0.0007684,120]
[358341456,1744959032372,-153.0,0.0007684,120]
[358341457,1744959032381,-153.0,0.0007684,120]
[358341458,1744959032390,-153.0,0.0007684,120]
[358341459,1744959032399,-153.0,0.0007684,120]
[358341460,1744959032409,-3326.33990449,0.00077142,2]
[358341461,1744959032422,-644.02009551,0.00077142,2]
[358341462,1744959032432,-151.0,0.00077226,90]
[358341463,1744959032442,-152.96,0.00077388,2]
[358341464,1744959032451,-476.94017109,0.00077642,120]
[358341465,1744959032467,-139.70982891,0.00077642,120]
[358341466,1744959032477,-175.67,0.00078038,120]
[358341467,1744959032487,-188.87,0.00078172,120]
[358341468,1744959032496,-122.92398572,0.00078409,2]
[358341469,1744959032508,-700.0,0.00078409,2]
[358341471,1744959037641,-589.97551441,0.00078409,2]
[358341472,1744959037652,-686.06161031,0.00078409,2]
[358341473,1744959037664,-19218.23614524,0.00078409,2]
[358341474,1744959037766,-2582.80274432,0.00078409,2]
[358341475,1744959037776,-4195.74,0.00078919,2]
[358341476,1744959037786,-167.08,0.00080338,2]
[358341477,1744959037795,-166.76,0.00081765,2]
[358341478,1744959037805,-175.67,0.00082929,120]
[358341479,1744959037815,-600.0,0.00084029,120]
[358341480,1744959037825,-153.482848,0.000849,90]
[358341481,1744959037835,-890.47,0.00084931,120]
[358341482,1744959037844,-190.37,0.00085,120]
[358341483,1744959037854,-152.96,0.00085127,120]
[358341484,1744959037863,-166.76,0.00086263,2]
[358341485,1744959037873,-616.65,0.00087347,120]
[358341486,1744959037882,-175.67,0.00087819,120]
[358341487,1744959037891,-10000.0,0.000888,120]
[358341488,1744959037901,-1000.0,0.0008888,120]
[358341489,1744959037910,-197.64,0.00089635,11]
[358341490,1744959037920,-3000.0,0.0008965,35]
[358341491,1744959037929,-874.0,0.0009,120]
[358341492,1744959037938,-2000.0,0.0009,120]
[358341493,1744959037948,-166.76,0.00090762,2]
[358341494,1744959037958,-175.67,0.0009271,120]
[358341496,1744959037967,-152.96,0.00092866,120]
[358341497,1744959037977,-502.47933043,0.000929,60]
[358341498,1744959037987,-890.47,0.0009315,120]
[358341500,1744959037996,-969.095,0.00093179,120]
[358341502,1744959038006,-10000.0,0.00094,120]
[358341503,1744959038015,-1500.0,0.00094,120]
[358341504,1744959038025,-500.0,0.0009411,2]
[358341505,1744959038034,-600.0,0.00094124,120]
[358341506,1744959038044,-1500.0,0.000942,120]
[358341507,1744959038054,-205.23509275,0.00094383,120]
[358341508,1744959038064,-500.0,0.00094383,120]
[358341509,1744959038073,-276.46235898,0.00094383,120]
[358341510,1744959038083,-246.37012871,0.00094383,120]
[358341511,1744959038093,-500.0,0.00094383,120]
[358341512,1744959038103,-500.0,0.00094383,120]
[358341514,1744959038114,-500.0,0.00094383,120]
[358341515,1744959038124,-500.0,0.00094383,120]
[358341516,1744959038135,-500.0,0.00094383,120]
[358341517,1744959038146,-500.0,0.00094383,120]
[358341518,1744959038156,-500.0,0.00094383,120]
[358341519,1744959038167,-1049.20354481,0.00094384,30]
[358341520,1744959038177,-1500.0,0.000944,120]
[358341521,1744959038187,-3000.0,0.0009447,35]
[358341522,1744959038197,-1500.0,0.000946,120]
[358341523,1744959038207,-10000.0,0.000947,120]
[358341524,1744959038216,-2038.19,0.00095,120]
[358341525,1744959038227,-166.76,0.0009526,2]
[358341526,1744959038237,-500.0,0.0009589,120]
[358341527,1744959038247,-338.46552385,0.00095897,120]
[358341528,1744959038256,-448.0154,0.000959,120]
[358341529,1744959038266,-1719.5516,0.000959,120]
[358341530,1744959038276,-634.9894,0.000959,120]
[358341531,1744959038285,-2500.0,0.000959,30]
[358341532,1744959038294,-1000.0,0.000959,30]
[358341533,1744959038305,-164.34264902,0.00095933,28]
[358341534,1744959038315,-159.79403537,0.00095973,14]
[358341535,1744959038325,-500.0,0.00095973,15]
[358341536,1744959038335,-506.98183847,0.00095973,2]
[358341537,1744959038345,-12540.9387377,0.0009599,8]
[358341538,1744959038355,-200000.0,0.00096,120]
[358341539,1744959038365,-581.77785208,0.00096033,80]
[358341540,1744959038375,-1567.61734221,0.00096123,8]
[358341542,1744959038384,-3347.61405052,0.00096133,15]
[358341543,1744959038394,-710.32203956,0.0009649,67]
[358341544,1744959038403,-1567.61734221,0.00096542,8]
[358341545,1744959038413,-3347.61405048,0.00096552,15]
[358341546,1744959038423,-4702.85202663,0.0009659,8]
[358341547,1744959038433,-21000.0,0.000966,120]
[358341548,1744959038442,-249.68,0.00096841,30]
[358341549,1744959038451,-528.09,0.00096841,30]
[358341550,1744959038462,-200.0,0.000969,35]
[358341551,1744959038472,-352.02338,0.0009692,120]
[358341552,1744959038481,-1567.61734221,0.0009696,8]
[358341553,1744959038491,-3347.61405048,0.0009697,15]
[358341554,1744959038501,-500.0,0.00096973,60]
[358341555,1744959038511,-458.79658166,0.00096973,60]
[358341556,1744959038521,-162.19684763,0.00096973,60]
[358341557,1744959038531,-214.43186497,0.00096973,60]
[358341558,1744959038541,-500.0,0.00096973,2]
[358341559,1744959038551,-500.0,0.00096973,60]
[358341560,1744959038561,-500.0,0.00096973,60]
[358341561,1744959038571,-15676.1734221,0.0009698,8]
[358341562,1744959038581,-23488.8920813,0.0009699,120]
[358341563,1744959038594,-37732.15355997,0.0009699,120]
[358341564,1744959038604,-6270.46936884,0.0009699,8]
[358341565,1744959038613,-44364.0799745,0.0009699,8]
[358341566,1744959038623,-212473.97772501,0.00097,120]
[358341567,1744959038633,-250.14875256,0.00097,120]
[358341568,1744959038642,-616.65,0.00097052,120]
[358341569,1744959038652,-4033.0981795,0.0009719,8]
[358341570,1744959038661,-5000.0,0.000972,120]
[358341571,1744959038671,-500.0,0.00097273,14]
[358341572,1744959038681,-19222.06417624,0.0009728,8]
[358341573,1744959038693,-1573.38671353,0.0009728,8]
[358341575,1744959040157,-500.0,0.00094383,120]
[358341576,1744959040167,-500.0,0.00094383,120]
[358341577,1744959040176,-500.0,0.00094383,120]
[358341578,1744959040186,-568.10309415,0.00094383,120]
[358341579,1744959040196,-500.0,0.00094383,120]
[358341580,1744959040205,-500.0,0.00094383,120]
[358341581,1744959040216,-11469.33454623,0.0009728,8]
[358341582,1744959040226,-60496.4726925,0.0009729,8]
[358341583,1744959040235,-157.041815,0.00097298,120]
[358341584,1744959040244,-10688.0,0.000973,120]
[358341585,1744959040254,-10688.0,0.000973,120]
[358341586,1744959040264,-10688.0,0.000973,120]
[358341587,1744959040273,-10688.0,0.000973,120]
[358341588,1744959040283,-10688.0,0.000973,120]
[358341589,1744959040292,-10688.0,0.000973,120]
[358341590,1744959040302,-10688.0,0.000973,120]
[358341591,1744959040311,-10688.0,0.000973,120]
[358341592,1744959040321,-10688.0,0.000973,120]
[358341593,1744959040331,-10688.0,0.000973,120]
[358341594,1744959040340,-10688.0,0.000973,120]
[358341595,1744959040350,-8231.15,0.000973,120]
[358341596,1744959040360,-513.02145909,0.0009735,120]
[358341600,1744959040519,-4033.0981795,0.00097379,8]
[358341601,1744959040529,-3347.61405048,0.00097389,15]
[358341602,1744959040539,-157.041815,0.00097398,120]
[358341603,1744959040548,-395.80328687,0.00097447,120]
[358341604,1744959040558,-175.67,0.000976,120]
[358341605,1744959040567,-395.80328687,0.00097672,120]
[358341606,1744959040577,-46703.000002,0.000977,120]
[358341607,1744959040587,-40330.981795,0.0009779,8]
[358341608,1744959040596,-16301.23366999,0.000978,110]
[358341609,1744959040608,-1273.216,0.000978,110]
[358341610,1744959040619,-2158.4752107,0.000978,110]
[358341611,1744959040654,-1500.0,0.000978,110]
[358341620,1744959045923,-3764.91586722,0.0009718,120]
[358341630,1744959248341,250.936161,7.945e-05,2]
[358341631,1744959344135,250.0,0.00017,2]
[358341636,1744959959115,-439.41305797,0.000509,2]
[358341638,1744960029115,-453.0,0.00045,120]
[358341639,1744960029138,-559.5516255,0.000509,2]
[358341640,1744960033108,-859.89531111,0.000509,2]
[358341641,1744960033131,-186.56159628,0.000509,2]
[358341642,1744960033154,-519.836056,0.00051,67]
[358341643,1744960033176,-1433.889921,0.00051096,7]
[358341644,1744960033198,-500.0,0.00052,67]
[358341645,1744960033220,-429.0,0.00052,120]
[358341646,1744960033244,-1459.32183176,0.000549,25]
[358341647,1744960033267,-3798.06923873,0.00055,56]
[358341648,1744960033288,-250.0,0.0005599,2]
[358341649,1744960033310,-606.039713,0.00062386,30]
[358341650,1744960033344,-439.98473141,0.000627,2]
[358341651,1744960033372,-900.0,0.00063098,20]
[358341652,1744960033394,-53.56076182,0.00063099,2]
[358341653,1744960040083,-500.0,0.00062897,120]
[358341654,1744960040107,-74.58235204,0.00063099,2]
[358341655,1744960048120,-371.85688614,0.00063099,2]
[358341656,1744960048142,-500.0,0.00063099,2]
[358341657,1744960048338,-500.0,0.00063099,2]
[358341658,1744960048362,-18.3926402,0.00063099,2]
[358341659,1744960049138,-481.6073598,0.00063099,2]
[358341660,1744960049160,-300.0,0.00065837,20]
[358341661,1744960049180,-90.24947749,0.000681,120]
[358341673,1744960231694,-459.97133716,0.00052096,120]
[358341674,1744960231704,-432.75052251,0.000681,120]
[358341675,1744960231713,-153.25,0.000716,72]
[358341676,1744960231723,-153.25,0.000716,72]
[358341677,1744960231733,-153.25,0.000716,72]
[358341678,1744960231743,-153.25,0.000716,72]
[358341679,1744960231754,-153.25,0.000716,72]
[358341680,1744960231764,-153.25,0.000716,72]
[358341681,1744960231773,-153.25,0.000716,72]
[358341682,1744960231783,-153.25,0.000716,72]
[358341683,1744960231792,-153.25,0.000716,72]
[358341684,1744960231802,-153.25,0.000716,72]
[358341685,1744960231811,-156.27,0.000716,120]
[358341686,1744960231821,-500.0,0.00074513,120]
[358341687,1744960231831,-500.0,0.00074958,120]
[358341688,1744960231841,-600.0,0.00077799,120]
[358341689,1744960231850,-166.85680619,0.00078027,120]
[358341690,1744960231867,-333.14319381,0.00078027,120]
[358341691,1744960231876,-600.0,0.00080874,120]
[358341692,1744960231886,-150.68,0.00084485,120]
[358341693,1744960231895,-249.70474021,0.00085705,30]
[358341719,1744960237790,-34.36525979,0.00085705,30]
[358341720,1744960237801,-272.31737889,0.00089899,20]
[358341721,1744960237823,-34.19429766,0.00089899,20]
[358341722,1744960237833,-538.67200498,0.000899,30]
[358341723,1744960237843,-186.56159628,0.000899,2]
[358341724,1744960237852,-1410.67777074,0.000899,48]
[358341725,1744960237861,-22570.3333,0.000899,2]
[358341726,1744960237871,-1000.0,0.00089999,120]
[358341727,1744960237881,-9534.74,0.0009,5]
[358341728,1744960237890,-35468.6432319,0.0009,120]
[358341729,1744960237901,-621.044,0.0009,120]
[358341730,1744960237910,-29128.22443413,0.0009,120]
[358341731,1744960237920,-23900.0,0.00091009,30]
[358341732,1744960237930,-167.08,0.00091088,30]
[358341733,1744960237939,-507.22516603,0.00091117,120]
[358341734,1744960237949,-150.68,0.00091332,120]
[358341735,1744960237958,-250.0,0.00091483,120]
[358341736,1744960237967,-1000.0,0.00091602,120]
[358341737,1744960237977,-700.2,0.00091664,30]
[358341738,1744960237987,-152.98,0.00092404,120]
[358341739,1744960237996,-174.28,0.00093024,3]
[358341740,1744960238005,-200.0,0.000932,34]
[358341741,1744960238015,-240.81,0.00093234,120]
[358341742,1744960238025,-500.0,0.000933,34]
[358341743,1744960238035,-800.0,0.000934,34]
[358341744,1744960238044,-1100.0,0.000935,34]
[358341745,1744960238054,-1300.0,0.000936,34]
[358341746,1744960238063,-2968.53050923,0.00093699,15]
[358341747,1744960238073,-200.0,0.000937,34]
[358341748,1744960238082,-3498.93548895,0.000937,15]
[358341749,1744960238092,-197.64,0.00093719,11]
[358341751,1744960238101,-2968.53050923,0.00093721,15]
[358341752,1744960238111,-3498.93548891,0.00093722,15]
[358341753,1744960238121,-2968.53050923,0.00093744,15]
[358341754,1744960238131,-3498.93548891,0.00093744,15]
[358341755,1744960238141,-2968.53050923,0.00093766,15]
[358341756,1744960238150,-3498.93548891,0.00093767,15]
[358341757,1744960238160,-196191.45511981,0.0009377,120]
[358341758,1744960238174,-330462.64173662,0.0009377,120]
[358341759,1744960238189,-518.29620646,0.0009377,120]
[358341760,1744960238201,-1445.87353189,0.0009377,120]
[358341773,1744960239950,-3462.05503581,0.0009377,120]
[358341774,1744960239962,-666.0,0.0009377,120]
[358341775,1744960239973,-1034.6788,0.0009377,120]
[358341776,1744960240067,-220883.04637953,0.0009377,120]
[358341777,1744960240104,-2046.02209402,0.0009377,120]
[358341778,1744960240116,-413.49846607,0.0009377,120]
[358341779,1744960240213,-7901.67657273,0.0009377,120]
[358341780,1744960240224,-2335.29685159,0.0009377,120]
[358341781,1744960240243,-5625.4276009,0.0009377,120]
[358341782,1744960240274,-981.89589485,0.0009377,120]
[358341783,1744960240390,-841.95204165,0.0009377,120]
[358341784,1744960240401,-1025.06710056,0.0009377,120]
[358341791,1744960244699,-9985.903201,0.0009377,120]
[358341792,1744960244711,-6171.0,0.0009377,120]
[358341793,1744960244724,-11786.963878,0.0009377,120]